bitfinex/quotes_SOLUSD_20250305
["timestamp","ask_amount","ask_price","bid_price","bid_amount"]
[1741149416182,45.9912,141.71,141.67,312.0]
[1741149416683,45.9912,141.71,141.67,319.0585]
[1741149416888,79.52606184,141.71,141.67,7.0585]
[1741149417092,45.9912,141.71,141.67,7.0585]
[1741149417285,45.9912,141.71,141.67,40.59336184]
[1741149417973,45.9912,141.71,141.67,7.0585]
[1741149418177,79.52606184,141.7,141.65,7.0596]
[1741149418376,33.53486184,141.68,141.64,7.06]
[1741149418668,79.52606184,141.67,141.62,7.0611]
[1741149419081,45.9912,141.67,141.62,40.59596184]
[1741149419892,45.9912,141.67,141.64,7.0601]
[1741149420087,45.9912,141.67,141.63,7.0605]
[1741149421090,45.9912,141.67,141.63,40.59536184]
[1741149421293,45.9912,141.67,141.64,33.53486184]
[1741149422197,45.9912,141.67,141.65,7.0596]
[1741149422804,45.9912,141.67,141.65,40.59446184]
[1741149423091,45.9912,141.67,141.66,33.53486184]
[1741149423279,6.1,141.71,141.66,33.53486184]
[1741149423482,45.9912,141.7,141.67,33.53486184]
[1741149423698,6.1,141.71,141.68,53.53486184]
[1741149423868,6.1,141.71,141.69,33.53486184]
[1741149424191,6.1,141.71,141.69,7.0576]
[1741149424401,6.1,141.71,141.69,319.0576]
[1741149425291,6.1,141.71,141.68,17.6452]
[1741149425595,6.1,141.71,141.68,24.7033]
[1741149427300,6.1,141.71,141.69,33.53486184]
[1741149427507,6.1,141.71,141.7,7.0571]
[1741149427790,0.03,141.73,141.71,0.28432314]
[1741149428094,0.03,141.73,141.7,58.23486184]
[1741149428292,0.03,141.73,141.71,312.0]
[1741149429010,66.96585786,141.72,141.69,7.0575]
[1741149429395,45.9912,141.72,141.67,45.67875786]
[1741149429596,45.9912,141.72,141.68,20.97465786]
[1741149430106,45.9912,141.72,141.69,20.97465786]
[1741149430286,45.9912,141.72,141.68,20.97465786]
[1741149430794,45.9912,141.72,141.69,20.97465786]
[1741149431386,45.9912,141.72,141.7,7.0571]
[1741149431798,45.9912,141.72,141.68,7.0581]
[1741149432002,45.9912,141.72,141.68,319.0581]
[1741149433807,45.9912,141.71,141.68,319.0581]
[1741149434421,45.9912,141.7,141.68,7.0581]
[1741149434911,20.97465786,141.69,141.66,7.0591]
[1741149435101,45.9912,141.68,141.66,7.0591]
[1741149435411,45.9912,141.67,141.64,7.0601]
[1741149435607,52.0912,141.67,141.64,7.0601]
[1741149436106,52.0912,141.67,141.63,0.033]
[1741149436411,52.0912,141.67,141.63,28.06825786]
[1741149436709,52.0912,141.67,141.64,20.97465786]
[1741149436893,52.0912,141.67,141.65,20.97465786]
[1741149437295,52.0912,141.67,141.65,332.97465786]
[1741149437812,6.1,141.67,141.66,20.97465786]
[1741149438016,45.9912,141.7,141.66,45.965881]
[1741149438193,45.9912,141.7,141.67,20.97465786]
[1741149439117,45.9912,141.7,141.68,7.0581]
[1741149439913,45.9912,141.7,141.67,7.0586]
[1741149440089,66.96585786,141.7,141.64,28.319081]
[1741149440697,45.9912,141.7,141.65,20.97465786]
[1741149440885,45.9912,141.7,141.65,332.97465786]
[1741149441090,66.96585786,141.7,141.65,312.0]
[1741149441305,66.96585786,141.7,141.65,319.0594]
[1741149442717,45.9912,141.69,141.65,319.0594]
[1741149443025,52.0912,141.69,141.65,340.03405786]
[1741149443716,52.0912,141.69,141.65,319.0594]
[1741149444101,73.06585786,141.69,141.63,21.00765786]
[1741149444301,45.9912,141.68,141.63,28.06815786]
[1741149444508,45.9912,141.68,141.63,7.0935]
[1741149444712,66.96585786,141.68,141.63,7.0935]
[1741149444910,20.97465786,141.67,141.63,0.033]
[1741149445109,66.96585786,141.66,141.63,0.033]
[1741149445415,45.9912,141.65,141.63,0.033]
[1741149446721,45.9912,141.65,141.63,21.00765786]
[1741149447016,45.9912,141.65,141.63,333.00765786]
[1741149447421,45.9912,141.65,141.64,20.97465786]
[1741149447616,6.1,141.69,141.64,21.258981]
[1741149447929,52.0912,141.69,141.66,7.0591]
[1741149448124,52.0912,141.69,141.66,28.03375786]
[1741149448629,52.0912,141.69,141.66,45.68155786]
[1741149449730,6.1,141.69,141.66,45.68155786]
[1741149449915,6.1,141.69,141.67,20.97465786]
[1741149450611,6.1,141.69,141.68,7.0581]
[1741149451630,45.9912,141.71,141.68,45.67805786]
[1741149451819,45.9912,141.71,141.69,20.97465786]
[1741149452433,6.11,141.73,141.7,28.03175786]
[1741149452632,0.03,141.73,141.7,45.67465786]
[1741149454729,0.03,141.73,141.7,357.67465786]
[1741149455438,0.03,141.73,141.71,20.97465786]
[1741149457744,0.03,141.73,141.72,7.0561]
[1741149458526,0.03,141.73,141.72,340.315081]
[1741149458937,0.03,141.73,141.72,319.34042314]
[1741149460239,0.03,141.73,141.72,7.0561]
[1741149462037,0.03,141.73,141.7,24.7]
[1741149462844,0.03,141.73,141.71,20.97465786]
[1741149463222,0.03,141.73,141.71,332.97465786]
[1741149464549,0.03,141.73,141.72,7.0561]
[1741149465040,0.03,141.73,141.72,28.315081]
[1741149465642,0.0001,141.74,141.73,0.28432314]
[1741149465947,0.0001,141.74,141.73,26.93310403]
[1741149466554,0.0001,141.74,141.73,21.258981]
[1741149466724,0.0001,141.74,141.73,28.314581]
[1741149468241,0.0001,141.74,141.73,340.314581]
[1741149471157,0.0001,141.74,141.73,319.0556]
[1741149471550,0.0001,141.74,141.73,7.0556]
[1741149472854,0.0001,141.74,141.73,20.97465786]
[1741149473657,0.0001,141.74,141.72,21.258981]
[1741149474033,0.0001,141.74,141.73,40.97465786]
[1741149474361,0.0001,141.74,141.73,20.0]
[1741149474544,0.0001,141.74,141.73,339.0556]
[1741149475647,0.0001,141.74,141.71,7.0566]
[1741149475852,0.0001,141.74,141.73,20.97465786]
[1741149476149,0.0001,141.74,141.73,21.258981]
[1741149476337,0.0001,141.74,141.73,41.258981]
[1741149477961,0.0001,141.74,141.73,48.314581]
[1741149478764,0.0001,141.74,141.73,360.314581]
[1741149479061,0.0001,141.74,141.73,319.0556]
[1741149479248,0.0001,141.74,141.73,7.0556]
[1741149480255,0.0001,141.74,141.71,7.0566]
[1741149481658,0.0001,141.74,141.71,28.03125786]
[1741149481863,0.0001,141.74,141.72,20.97465786]
[1741149482234,0.0001,141.74,141.73,312.0]
[1741149482963,0.0001,141.74,141.73,340.314581]
[1741149485749,0.0001,141.74,141.73,319.0556]
[1741149486538,0.0001,141.74,141.73,340.314581]
[1741149486735,0.0001,141.74,141.73,28.314581]
[1741149487572,0.03,141.77,141.76,20.0]
[1741149487769,0.03,141.77,141.76,27.0541]
[1741149488264,0.03,141.77,141.76,48.313081]
[1741149489063,0.03,141.77,141.76,27.33842314]
[1741149489272,0.03,141.77,141.72,0.033]
[1741149489440,45.9912,141.76,141.72,7.089]
[1741149489646,66.96585786,141.76,141.72,7.089]
[1741149489842,45.9912,141.76,141.72,312.033]
[1741149491965,45.9912,141.76,141.73,7.0556]
[1741149492763,45.9912,141.76,141.72,0.033]
[1741149492975,45.9912,141.76,141.72,7.0891]
[1741149493276,45.9912,141.75,141.72,7.0891]
[1741149495874,45.9912,141.75,141.72,319.0891]
[1741149496481,45.9912,141.75,141.72,0.033]
[1741149498283,45.9912,141.75,141.72,21.00765786]
[1741149498773,45.9912,141.75,141.73,28.03025786]
[1741149499290,0.03,141.77,141.73,45.66935786]
[1741149499448,0.03,141.77,141.75,20.97465786]
[1741149500159,0.03,141.77,141.76,21.258981]
[1741149500476,0.03,141.77,141.75,20.97465786]
[1741149500998,0.03,141.77,141.76,7.0541]
[1741149501854,0.03,141.77,141.76,28.02875786]
[1741149502956,0.03,141.77,141.76,340.313081]
[1741149503961,0.03,141.77,141.76,319.33842314]
[1741149504172,0.03,141.77,141.76,340.313081]
[1741149504888,0.03,141.81,141.79,20.28432314]
[1741149505061,0.03,141.84,141.81,0.28432314]
[1741149505267,0.03,141.84,141.82,20.97465786]
[1741149506664,0.03,141.84,141.83,7.0506]
[1741149507085,10.64466869,141.88,141.87,0.28432314]
[1741149507287,6.869e-05,141.88,141.87,21.258981]
[1741149507471,6.869e-05,141.88,141.87,20.97465786]
[1741149507664,0.03,141.89,141.86,20.0]
[1741149507863,0.03,141.89,141.87,312.0]
[1741149508779,0.03,141.89,141.88,7.0482]
[1741149508978,0.03,141.89,141.87,319.0485]
[1741149509376,0.03,141.89,141.87,340.02315786]
[1741149509893,0.03,141.89,141.88,21.258981]
[1741149510194,0.03,141.9,141.89,41.258981]
[1741149510991,0.03,141.9,141.89,48.306681]
[1741149511397,0.03006869,141.92,141.89,86.90053886]
[1741149511697,0.03006869,141.92,141.91,20.97465786]
[1741149511895,0.03,141.92,141.91,20.97465786]
[1741149512280,45.9912,142.01,141.95,0.28432314]
[1741149512492,45.9912,142.0,141.97,20.97465786]
[1741149512995,45.9912,142.0,141.98,7.0432]
[1741149513293,45.9912,142.02,141.98,7.0432]
[1741149513891,20.97465786,141.99,141.93,28.304681]
[1741149514099,20.97465786,141.99,141.94,20.97465786]
[1741149514266,66.96585786,142.0,141.94,20.97465786]
[1741149515108,66.96585786,142.0,141.96,7.0442]
[1741149515396,45.9912,142.0,141.96,7.0442]
[1741149516097,45.9912,142.0,141.96,28.01885786]
[1741149516470,45.9912,142.0,141.96,340.01885786]
[1741149519815,45.9912,142.0,141.96,28.01885786]
[1741149520979,20.97465786,141.99,141.93,81.6]
[1741149521176,20.97465786,141.97,141.91,28.02135786]
[1741149521371,66.96585786,141.96,141.91,7.0467]
[1741149521571,66.96585786,141.95,141.91,7.0467]
[1741149521799,66.96585786,141.95,141.9,28.02175786]
[1741149522105,66.96585786,141.94,141.89,7.0475]
[1741149524501,45.9912,141.93,141.88,340.02275786]
[1741149524701,28.01985786,141.94,141.86,22.62385786]
[1741149524702,66.96585786,141.92,141.86,22.62385786]
[1741149524993,66.96585786,141.92,141.88,0.033]
[1741149525389,45.9912,141.92,141.88,0.033]
[1741149525710,66.96585786,141.92,141.88,0.033]
[1741149526007,20.97465786,141.91,141.88,0.033]
[1741149526501,45.9912,141.9,141.88,0.033]
[1741149528295,45.9912,141.9,141.89,20.97465786]
[1741149528799,45.9912,141.9,141.88,21.00765786]
[1741149528995,45.9912,141.9,141.88,0.033]
[1741149530882,20.97465786,141.89,141.88,0.033]
[1741149532899,6.2349,141.91,141.88,0.033]
[1741149533921,1.5974,141.92,141.88,0.033]
[1741149534211,20.97465786,141.93,141.88,0.033]
[1741149536016,0.03,141.94,141.88,0.033]
[1741149536017,20.97465786,141.91,141.88,0.033]
[1741149536392,20.97465786,141.9,141.88,0.033]
[1741149537097,81.8,141.89,141.88,0.033]
[1741149539021,81.8,141.89,141.88,28.05585786]
[1741149539205,81.8,141.89,141.88,340.05585786]
[1741149539513,0.03,141.92,141.88,357.67635786]
[1741149539900,0.03,141.92,141.9,20.97465786]
[1741149541850,0.03,141.92,141.91,7.0467]
[1741149545158,0.03,141.92,141.91,20.97465786]
[1741149545644,0.03,141.94,141.91,22.875081]
[1741149545947,0.03,141.94,141.93,20.97465786]
[1741149546445,0.03,141.94,141.93,332.97465786]
[1741149546648,81.8,141.96,141.93,332.97465786]
[1741149546825,81.8,141.99,141.94,20.97465786]
[1741149547144,81.8,141.98,141.94,20.97465786]
[1741149547330,81.8,141.98,141.95,7.0447]
[1741149547672,81.8,141.98,141.95,24.6565]
[1741149550246,108.81465786,142.01,141.96,0.28432314]
[1741149550541,87.84,142.01,141.96,21.258981]
[1741149550747,81.8,142.01,141.96,21.258981]
[1741149551049,81.8,142.01,141.97,20.97465786]
[1741149551236,81.8,142.01,141.98,20.97465786]
[1741149551645,102.77465786,142.04,141.98,20.97465786]
[1741149551819,102.77465786,142.04,141.96,0.28432314]
[1741149552134,20.97465786,142.02,141.97,24.6519]
[1741149552334,20.97465786,142.02,141.97,336.6519]
[1741149552545,20.97465786,142.02,141.97,319.0437]
[1741149552858,81.8,142.01,141.97,319.0437]
[1741149553750,81.8,142.01,141.97,340.01835786]
[1741149555232,81.8,142.01,141.98,0.28432314]
[1741149556439,81.8,142.01,141.99,7.0427]
[1741149558643,102.77465786,142.03,141.99,7.0427]
[1741149559360,20.97465786,142.02,141.98,7.0431]
[1741149559746,102.77465786,142.02,141.98,7.0431]
[1741149560460,20.97465786,141.99,141.95,7.0447]
[1741149560659,20.97465786,141.98,141.95,7.0447]
[1741149560840,81.8,141.97,141.95,7.0447]
[1741149561749,81.8,141.97,141.95,28.01935786]
[1741149563366,81.8,142.01,141.96,20.97465786]
[1741149563571,81.8,142.01,141.98,20.97465786]
[1741149564163,81.8,142.01,141.97,20.97465786]
[1741149564551,81.8,142.01,141.99,20.97465786]
[1741149564753,0.03,142.02,142.0,20.97465786]
[1741149565651,0.03,142.02,142.01,7.0417]
[1741149566552,0.03,142.02,141.99,7.0422]
[1741149566940,21.00465786,142.02,141.98,7.043]
[1741149567141,102.80465786,142.02,141.98,7.043]
[1741149568269,20.97465786,142.01,141.97,7.0435]
[1741149570184,20.97465786,142.01,141.96,7.0441]
[1741149570359,20.97465786,141.99,141.95,7.0447]
[1741149571372,102.77465786,142.0,141.95,7.0447]
[1741149571981,20.97465786,141.99,141.95,7.0447]
[1741149572147,20.97465786,141.98,141.93,7.0452]
[1741149572351,102.77465786,141.97,141.93,7.0452]
[1741149573359,81.8,141.97,141.92,28.16301943]
[1741149573868,81.8,141.97,141.94,0.033]
[1741149574388,81.8,141.97,141.94,7.0782]
[1741149574560,81.8,141.97,141.95,20.97465786]
[1741149575082,81.8,141.97,141.96,40.97465786]
[1741149575290,6.02,141.98,141.94,28.05285786]
[1741149575456,6.02,141.98,141.94,7.0782]
[1741149575783,6.02,141.98,141.95,0.14216157]
[1741149575980,6.02,141.98,141.95,21.11681943]
[1741149576167,6.02,141.98,141.95,0.14216157]
[1741149576570,6.02,141.98,141.96,7.0442]
[1741149578478,6.02,141.98,141.96,28.01885786]
[1741149578682,81.8,142.0,141.96,28.01885786]
[1741149578882,81.8,141.99,141.96,45.62935786]
[1741149579482,81.8,141.99,141.96,7.0442]
[1741149580492,102.77465786,141.99,141.94,0.033]
[1741149580688,20.97465786,141.98,141.94,7.078]
[1741149581389,102.77465786,141.99,141.94,7.078]
[1741149581560,20.97465786,141.98,141.94,7.078]
[1741149582478,81.8,141.97,141.94,7.078]
[1741149582674,81.8,141.96,141.94,0.033]
[1741149586376,20.97465786,141.97,141.94,0.033]
[1741149586377,102.77465786,141.95,141.94,0.033]
[1741149588078,109.81935786,141.95,141.94,0.033]
[1741149588575,28.16151943,141.95,141.94,0.033]
[1741149590487,28.303681,141.95,141.94,0.033]
[1741149592299,0.14216157,141.94,141.9,0.033]
[1741149592599,20.97465786,141.91,141.9,0.033]
[1741149597103,6.02,141.93,141.9,0.033]
[1741149597306,20.97465786,141.93,141.9,0.033]
[1741149597511,20.97465786,141.92,141.9,0.033]
[1741149598783,20.97465786,141.91,141.9,0.033]
[1741149601693,20.97465786,141.92,141.9,0.033]
[1741149604496,26.99465786,141.94,141.9,0.033]
[1741149606007,21.00465786,141.95,141.9,0.033]
[1741149606319,27.02465786,141.95,141.9,0.17516157]
[1741149606489,27.02465786,141.95,141.9,0.033]
[1741149606688,20.97465786,141.93,141.9,0.033]
[1741149606916,20.97465786,141.92,141.9,0.033]
[1741149607415,20.97465786,141.93,141.9,0.033]
[1741149607732,20.97465786,141.94,141.9,0.033]
[1741149608827,20.97465786,141.93,141.9,0.033]
[1741149609122,81.8,141.92,141.9,0.033]
[1741149611922,102.77465786,141.91,141.9,0.033]
[1741149612109,20.97465786,141.91,141.9,0.033]
[1741149613220,28.02135786,141.91,141.9,0.033]
[1741149613408,20.97465786,141.91,141.9,0.033]
[1741149614715,20.97465786,141.92,141.9,0.033]
[1741149614905,20.97465786,141.93,141.9,0.033]
[1741149615230,20.97465786,141.92,141.9,0.033]
[1741149615411,20.97465786,141.93,141.9,0.033]
[1741149618235,6.0,141.93,141.9,1.568]
[1741149618533,0.03,141.95,141.9,22.54265786]
[1741149619039,0.03,141.95,141.9,334.54265786]
[1741149619217,81.8,141.94,141.9,334.54265786]
[1741149619738,81.8,141.94,141.91,7.0467]
[1741149621044,102.77465786,141.94,141.9,313.568]
[1741149621343,20.97465786,141.93,141.9,8.6151]
[1741149624038,81.8,141.92,141.9,7.0801]
[1741149625624,81.8,141.92,141.9,0.033]
[1741149630150,81.8,141.92,141.9,312.033]
[1741149632151,81.8,141.92,141.91,7.0467]
[1741149634241,81.8,141.92,141.9,0.033]
[1741149634242,81.8,141.91,141.9,0.033]
[1741149634441,102.77465786,141.91,141.9,0.033]
[1741149634636,95.19319359,141.91,141.9,0.033]
[1741149634833,13.39319359,141.91,141.9,0.033]
[1741149636534,20.92639488,141.91,141.9,0.033]
[1741149636940,20.92639488,141.92,141.9,0.033]
[1741149637857,20.92639488,141.93,141.9,0.033]
[1741149638662,20.95639488,141.94,141.9,0.033]
[1741149638857,81.8,141.93,141.9,0.033]
[1741149639561,81.8,141.92,141.9,0.033]
[1741149643561,81.8,141.92,141.9,1.568]
[1741149644365,81.8,141.92,141.91,7.0467]
[1741149644968,81.8,141.92,141.9,0.033]
[1741149645165,102.72639488,141.92,141.9,0.033]
[1741149645660,102.72639488,141.91,141.9,0.033]
[1741149646062,20.92639488,141.91,141.9,0.033]
[1741149646250,27.97309488,141.91,141.9,0.033]
[1741149646963,49.1838129,141.91,141.9,0.033]
[1741149647357,20.14216157,141.89,141.88,0.033]
[1741149647552,61.99495133,141.89,141.88,0.033]
[1741149647780,20.92639488,141.83,141.8,7.052]
[1741149648448,26.92639488,141.84,141.8,7.052]
[1741149650981,6.0,141.84,141.8,7.052]
[1741149651564,9.58537582,141.84,141.8,7.052]
[1741149651957,81.8,141.82,141.79,8.6206]
[1741149652142,102.72639488,141.82,141.79,8.6206]
[1741149654681,81.8,141.82,141.79,8.6206]
[1741149655077,81.8,141.82,141.79,7.0856]
[1741149656676,81.8,141.81,141.79,7.0856]
[1741149657799,81.8,141.83,141.79,24.7173]
[1741149658080,81.8,141.83,141.79,336.7173]
[1741149658855,102.72639488,141.83,141.79,336.7173]
[1741149659260,102.72639488,141.83,141.79,319.0856]
[1741149659454,102.72639488,141.83,141.79,7.0856]
[1741149659965,81.8,141.83,141.8,21.06855645]
[1741149660295,81.8,141.85,141.82,20.92639488]
[1741149660488,81.8,141.85,141.81,1.6401]
[1741149660489,81.8,141.85,141.84,7.0501]
[1741149661771,102.72639488,141.85,141.81,7.0515]
[1741149661971,20.92639488,141.83,141.79,7.0855]
[1741149662283,20.92639488,141.8,141.79,0.033]
[1741149662579,13.41433537,141.8,141.79,0.033]
[1741149663367,13.55649694,141.8,141.79,0.033]
[1741149663586,13.69865851,141.8,141.79,0.033]
[1741149664157,144.72552314,141.79,141.75,0.033]
[1741149664361,67.21383842,141.76,141.75,0.033]
[1741149664559,49.16928603,141.76,141.75,0.033]
[1741149664972,49.3114476,141.76,141.75,0.033]
[1741149665172,0.28432314,141.75,141.74,0.033]
[1741149665369,0.14216157,141.73,141.72,0.033]
[1741149665685,46.77293908,141.73,141.72,0.033]
[1741149665883,41.1286738,141.73,141.72,0.033]
[1741149666384,43.27083537,141.73,141.72,0.033]
[1741149666559,41.27083537,141.73,141.72,0.033]
[1741149667172,48.32643537,141.73,141.72,0.033]
[1741149667683,41.27083537,141.73,141.72,0.033]
[1741149668078,21.1286738,141.73,141.72,0.033]
[1741149669874,20.98651223,141.73,141.72,0.033]
[1741149670188,26.96651223,141.73,141.72,0.033]
[1741149671162,27.25083537,141.73,141.72,0.033]
[1741149672818,0.14216157,141.72,141.69,0.033]
[1741149672968,41.1286738,141.72,141.69,0.033]
[1741149673872,21.1286738,141.72,141.69,0.033]
[1741149674266,27.1086738,141.72,141.69,0.033]
[1741149674697,20.98651223,141.7,141.69,0.033]
[1741149676783,20.98651223,141.71,141.69,0.033]
[1741149679406,20.98651223,141.7,141.69,0.033]
[1741149681290,20.98651223,141.71,141.69,0.033]
[1741149682086,26.96651223,141.72,141.69,0.033]
[1741149682495,20.98651223,141.71,141.69,0.033]
[1741149682809,26.96651223,141.71,141.69,0.033]
[1741149683000,5.98,141.71,141.69,0.033]
[1741149683205,5.98,141.71,141.69,7.0906]
[1741149683419,20.98651223,141.74,141.69,28.07711223]
[1741149683704,5.98,141.74,141.69,28.07711223]
[1741149683901,26.96651223,141.74,141.69,7.0906]
[1741149684202,5.98,141.74,141.69,7.0906]
[1741149684391,20.98651223,141.71,141.69,0.033]
[1741149685990,20.98651223,141.72,141.69,0.033]
[1741149688281,20.98651223,141.73,141.69,0.033]
[1741149689308,20.98651223,141.72,141.69,0.033]
[1741149689508,102.78651223,141.72,141.69,0.033]
[1741149692211,81.8,141.72,141.69,0.033]
[1741149693710,102.81651223,141.72,141.69,0.033]
[1741149694814,81.83,141.72,141.69,21.01951223]
[1741149695186,81.83,141.72,141.7,20.98651223]
[1741149695387,81.83,141.72,141.7,28.04361223]
[1741149695818,81.83,141.72,141.71,20.98651223]
[1741149696009,81.83,141.72,141.7,28.04361223]
[1741149697213,81.83,141.72,141.71,20.98651223]
[1741149697421,5.98,141.75,141.72,0.14216157]
[1741149697600,81.8,141.76,141.74,22.49721223]
[1741149698823,81.8,141.79,141.75,20.98651223]
[1741149699005,81.8,141.78,141.76,40.98651223]
[1741149699317,87.78,141.8,141.78,7.0531]
[1741149700822,81.8,141.83,141.79,21.1286738]
[1741149701014,81.8,141.83,141.8,20.98651223]
[1741149701394,81.8,141.83,141.81,28.03811223]
[1741149701596,81.8,141.83,141.81,29.54631223]
[1741149701807,81.8,141.86,141.82,20.98651223]
[1741149702012,81.8,141.86,141.84,40.98651223]
[1741149702718,81.8,141.86,141.84,20.0]
[1741149703515,81.8,141.86,141.84,27.0501]
[1741149704209,81.8,141.86,141.81,1.5082]
[1741149704407,81.8,141.86,141.81,29.54601223]
[1741149704611,20.98651223,141.85,141.81,1.5082]
[1741149706024,102.78651223,141.86,141.81,8.5597]
[1741149706221,81.8,141.86,141.82,20.98651223]
[1741149706398,81.8,141.86,141.81,29.54621223]
[1741149706598,102.78651223,141.86,141.81,29.54621223]
[1741149707215,81.8,141.85,141.81,341.54621223]
[1741149708303,81.8,141.85,141.82,21.27083537]
[1741149708497,0.03,141.87,141.84,21.1286738]
[1741149708703,0.03,141.87,141.85,20.0]
[1741149708922,0.03,141.87,141.83,20.98651223]
[1741149710314,81.8,141.86,141.82,7.0507]
[1741149710518,81.8,141.85,141.82,7.0507]
[1741149712030,81.8,141.85,141.82,28.03721223]
[1741149712530,81.8,141.85,141.82,7.0507]
[1741149716935,81.8,141.85,141.82,28.03721223]
[1741149717606,81.8,141.85,141.82,7.0507]
[1741149720635,81.8,141.85,141.82,28.03721223]
[1741149721144,81.8,141.85,141.82,7.0507]
[1741149721316,102.78651223,141.85,141.82,7.0507]
[1741149722023,81.8,141.84,141.82,7.0507]
[1741149722538,0.03,141.87,141.86,20.0]
[1741149722850,0.03,141.87,141.86,40.98651223]
[1741149723536,0.03,141.87,141.86,48.03571223]
[1741149723918,0.03,141.87,141.86,27.0492]
[1741149725533,0.03,141.87,141.86,48.1778738]
[1741149725735,0.03,141.87,141.86,48.32003537]
[1741149726216,0.03,141.88,141.87,0.14216157]
[1741149726418,0.0001,141.88,141.87,21.1286738]
[1741149726917,0.0001,141.88,141.87,21.27083537]
[1741149727713,0.0001,141.88,141.87,28.31953537]
[1741149728340,0.0001,141.91,141.9,20.14216157]
[1741149728638,0.0001,141.91,141.9,41.1286738]
[1741149728835,0.0001,141.91,141.9,41.27083537]
[1741149729042,0.0001,141.91,141.9,42.78693537]
[1741149729249,0.0001,141.93,141.91,0.28432314]
[1741149729434,0.0001,141.93,141.92,41.1286738]
[1741149730248,0.0001,141.93,141.92,360.1748738]
[1741149730452,0.03,142.0,141.93,0.28432314]
[1741149730633,0.03,142.0,141.97,21.1286738]
[1741149730956,0.03,142.0,141.98,20.98651223]
[1741149731254,0.03,142.0,141.99,20.98651223]
[1741149732060,0.03,142.0,141.99,28.1713738]
[1741149732352,0.03,142.0,141.99,28.31353537]
[1741149733832,0.03,142.0,141.99,340.31353537]
[1741149735955,0.03,142.0,141.99,28.31353537]
[1741149738159,0.03,142.02,142.0,21.27083537]
[1741149738338,0.03,142.03,142.02,0.14216157]
[1741149738549,0.03,142.03,142.02,41.27083537]
[1741149738731,0.03,142.03,142.02,353.27083537]
[1741149739442,0.03,142.06,142.05,28.1683738]
[1741149740754,0.03,142.06,142.03,20.98651223]
[1741149740952,0.03,142.06,142.02,7.0411]
[1741149741133,81.8,142.05,142.02,7.0411]
[1741149741556,81.8,142.05,142.03,20.0]
[1741149741964,81.8,142.05,142.02,7.0411]
[1741149742647,81.8,142.05,142.01,20.98651223]
[1741149742859,81.8,142.05,142.01,28.02811223]
[1741149745341,81.8,142.05,142.0,28.1707738]
[1741149745651,102.78651223,142.05,142.0,7.18426157]
[1741149746467,81.8,142.05,142.0,28.1707738]
[1741149747673,102.78651223,142.05,142.0,7.18426157]
[1741149748145,81.8,142.05,142.0,28.1707738]
[1741149748840,81.8,142.04,142.0,28.1707738]
[1741149750164,81.8,142.04,142.0,7.18426157]
[1741149752068,20.98651223,142.02,141.99,0.033]
[1741149752245,87.74,142.01,141.99,0.033]
[1741149752641,108.72651223,142.01,141.99,0.033]
[1741149752969,102.78651223,142.0,141.99,0.033]
[1741149753468,20.98651223,142.0,141.99,0.033]
[1741149753659,27.21721223,142.0,141.99,0.033]
[1741149754251,34.25941223,142.0,141.99,0.033]
[1741149755968,27.21721223,142.0,141.99,0.033]
[1741149756154,20.98651223,141.99,141.94,7.0452]
[1741149756871,1.6054,142.01,141.96,20.98651223]
[1741149757067,1.6054,142.01,141.97,40.98651223]
[1741149757273,5.94,142.02,141.97,40.98651223]
[1741149757571,5.94,142.02,141.98,7.0432]
[1741149757752,81.8,142.0,141.98,7.0432]